bitfinex/quotes_SOLUSD_20251103
["timestamp","ask_amount","ask_price","bid_price","bid_amount"]
[1762196298456,13.07216157,167.93,167.92,0.1]
[1762196298863,12.24,167.93,167.92,0.1]
[1762196299053,12.24,167.93,167.92,6.05517007]
[1762196299255,12.93,167.93,167.92,0.1]
[1762196299441,0.69,167.93,167.92,0.1]
[1762196299752,12.93,167.93,167.92,0.1]
[1762196300153,0.69,167.96,167.92,6.05521676]
[1762196300346,12.24,167.95,167.92,6.05521676]
[1762196300753,12.93,167.95,167.92,6.05521676]
[1762196300969,0.83216157,167.94,167.92,0.1]
[1762196302564,5.95167241,168.02,167.92,6.05520958]
[1762196302814,0.69,167.96,167.92,6.05520958]
[1762196302951,12.24,167.95,167.92,6.05520958]
[1762196303347,0.69,167.94,167.92,6.05520958]
[1762196304084,0.69,167.94,167.92,0.1]
[1762196305263,0.69,167.94,167.92,6.05508724]
[1762196307848,0.84216157,167.97,167.92,6.05508724]
[1762196308050,12.24,167.96,167.92,6.76508724]
[1762196308248,12.94,167.96,167.92,6.05508724]
[1762196308448,0.7,167.95,167.92,6.05508724]
[1762196309282,20.592,167.99,167.93,0.71]
[1762196309568,12.94,167.98,167.93,0.71]
[1762196309873,12.94,167.98,167.92,20.94312916]
[1762196309874,12.24,167.97,167.92,20.94312916]
[1762196310051,12.94,167.97,167.92,6.05508724]
[1762196310255,0.7,167.96,167.92,6.05508724]
[1762196310471,12.24,167.97,167.92,6.76508724]
[1762196310786,0.7,167.96,167.92,6.05508724]
[1762196311256,6.65383711,167.96,167.92,6.05508724]
[1762196311622,6.65383711,167.96,167.92,0.1]
[1762196311883,0.7,167.95,167.92,6.05519085]
[1762196313150,5.62021537,167.95,167.92,0.1]
[1762196313561,0.69,167.94,167.92,0.1]
[1762196313761,12.24,167.93,167.92,0.1]
[1762196314166,12.93,167.93,167.92,0.1]
[1762196315275,0.69,167.98,167.92,6.74521676]
[1762196315480,12.93,167.97,167.92,6.74521676]
[1762196315676,12.93,167.97,167.92,21.63325868]
[1762196315881,0.69,167.96,167.92,21.63325868]
[1762196316790,5.53219299,168.03,167.93,10.47882769]
[1762196316965,16.11858595,168.02,167.95,9.78882769]
[1762196317167,3.87858595,168.01,167.96,20.83829482]
[1762196317379,4.56858595,168.01,167.96,5.95379852]
[1762196317565,4.56858595,168.0,167.96,5.95379852]
[1762196317765,0.69,168.0,167.96,5.95379852]
[1762196317973,3.87858595,168.0,167.96,5.95379852]
[1762196318181,3.87858595,168.01,167.96,20.83829482]
[1762196318382,16.11858595,168.0,167.96,20.83829482]
[1762196318694,12.24,168.0,167.96,20.83829482]
[1762196318993,12.24,168.0,167.96,21.52829482]
[1762196319387,12.93,168.0,167.96,21.52829482]
[1762196319575,12.93,168.0,167.96,6.64379852]
[1762196319773,0.69,167.99,167.96,5.95379852]
[1762196320081,3.88512707,167.99,167.96,21.52829482]
[1762196320272,12.24,168.0,167.96,21.52829482]
[1762196320471,0.69,167.99,167.96,5.95379852]
[1762196320674,0.69,167.99,167.95,5.95402409]
[1762196320900,0.69,167.99,167.95,6.64402409]
[1762196321200,0.69,167.99,167.95,21.52940664]
[1762196321379,4.58126725,167.99,167.95,21.52940664]
[1762196321683,0.69,167.99,167.95,21.52940664]
[1762196322275,0.69,167.99,167.95,20.83940664]
[1762196322471,3.89395408,167.98,167.95,20.83940664]
[1762196322684,0.69,167.99,167.95,21.52940664]
[1762196323286,3.89639331,167.98,167.95,21.52940664]
[1762196323598,0.69,167.99,167.95,21.52940664]
[1762196323892,3.89635921,167.98,167.95,21.52940664]
[1762196324196,3.89994376,167.97,167.95,21.52940664]
[1762196324397,0.69,167.99,167.95,21.52940664]
[1762196324601,3.89974491,167.98,167.94,0.69]
[1762196324894,3.89974491,167.97,167.94,0.69]
[1762196325101,0.69,167.99,167.94,0.69]
[1762196325396,3.899743,167.98,167.94,0.69]
[1762196325580,0.69,167.99,167.95,5.95415302]
[1762196325899,3.90007432,167.98,167.95,5.95415302]
[1762196326094,12.93,168.0,167.96,0.69]
[1762196326281,16.13888808,167.99,167.96,0.69]
[1762196326481,3.89888808,167.98,167.96,0.69]
[1762196326687,3.89888808,167.97,167.96,0.69]
[1762196326889,12.24,167.99,167.96,0.69]
[1762196327093,3.9023629,167.98,167.96,0.69]
[1762196327272,3.90774424,167.97,167.96,0.69]
[1762196327478,4.84219299,168.02,167.97,9.78882769]
[1762196327677,16.14787493,168.01,167.98,21.52581378]
[1762196327889,3.90787493,168.0,167.98,20.83581378]
[1762196328198,3.90787493,167.99,167.98,20.83581378]
[1762196329595,3.90787493,167.99,167.98,5.95308965]
[1762196330295,4.59787493,167.99,167.98,5.95308965]
[1762196330884,4.59787493,167.99,167.94,14.88623142]
[1762196331109,9.44006792,167.98,167.95,5.95415302]
[1762196331313,16.83787493,167.97,167.94,5.95437989]
[1762196331482,9.44006792,167.96,167.92,6.05486835]
[1762196331687,4.59787493,167.95,167.92,6.05486835]
[1762196331887,3.90787493,167.94,167.92,6.05486835]
[1762196332181,16.14787493,167.93,167.92,6.05486835]
[1762196333581,3.90787493,167.93,167.92,6.74486835]
[1762196333801,4.84219299,167.98,167.92,6.74486835]
[1762196333802,12.24,167.94,167.92,21.63291027]
[1762196334309,0.69,167.97,167.93,9.78882769]
[1762196334509,16.16753969,167.96,167.93,10.47882769]
[1762196334806,16.16753969,167.95,167.93,10.47882769]
[1762196335013,12.24,167.95,167.93,9.78882769]
[1762196335189,3.92770738,167.94,167.93,9.78882769]
[1762196335391,3.92770738,167.94,167.93,15.74368983]
[1762196336288,12.24,167.95,167.93,15.74368983]
[1762196337190,12.24,167.95,167.93,16.43368983]
[1762196337998,12.24,167.95,167.94,0.69]
[1762196338400,12.24,167.95,167.93,15.74368983]
[1762196338604,12.24,167.95,167.93,16.43368983]
[1762196339001,12.24,167.95,167.93,15.74368983]
[1762196339205,12.93,167.95,167.93,15.74368983]
[1762196339397,0.69,167.97,167.93,30.63084519]
[1762196339712,16.16982792,167.96,167.93,30.63084519]
[1762196339914,12.24,167.96,167.93,30.63084519]
[1762196340616,12.93,167.96,167.93,30.63084519]
[1762196340806,0.69,167.95,167.93,20.8420175]
[1762196341310,0.69,167.95,167.93,5.95486214]
[1762196341505,0.69,167.95,167.92,6.0551368]
[1762196342303,3.93027243,167.94,167.92,6.0551368]
[1762196342591,0.69,167.95,167.92,0.1]
[1762196342789,3.9300698,167.94,167.92,0.1]
[1762196342991,0.72,167.95,167.92,0.1]
[1762196343192,3.9299799,167.94,167.92,6.05515824]
[1762196343422,3.93077134,167.95,167.92,6.73515824]
[1762196343712,12.24,167.98,167.93,10.46882769]
[1762196343916,12.24,167.98,167.97,20.592]
[1762196344091,16.17131685,167.98,167.97,26.54544406]
[1762196344891,3.93131685,167.98,167.97,37.01427175]
[1762196345093,3.93169569,168.01,168.0,20.592]
[1762196345713,3.93169569,168.01,168.0,30.38082769]
[1762196346013,3.93169569,168.01,167.99,9.78882769]
[1762196346216,12.24,168.03,167.99,10.46882769]
[1762196346512,12.96,168.03,168.0,5.95238095]
[1762196346718,12.24,168.02,168.0,5.95238095]
[1762196346904,12.96,168.03,168.0,5.95238095]
[1762196347416,0.72,168.03,168.0,5.95238095]
[1762196347614,12.96,168.03,168.0,5.95238095]
[1762196348321,0.72,168.03,168.0,5.95238095]
[1762196348524,0.72,168.05,168.0,5.95238095]
[1762196348821,12.24,168.04,168.0,5.95238095]
[1762196349410,12.96,168.04,168.0,5.95238095]
[1762196351634,12.24,168.04,168.0,5.95238095]
[1762196351843,0.72,168.03,167.98,26.54492983]
[1762196352725,6.67142229,168.03,167.97,5.95344406]
[1762196352951,0.72,168.02,167.98,0.68]
[1762196353134,0.72,168.03,167.98,0.68]
[1762196353537,0.72,168.03,167.98,9.78882769]
[1762196354141,12.24,168.02,167.98,9.78882769]
[1762196354526,12.96,168.02,167.99,5.95273528]
[1762196354726,12.24,168.02,167.99,5.95273528]
[1762196354926,12.24,168.02,167.98,9.78882769]
[1762196354927,0.72,168.01,167.97,5.95320096]
[1762196355122,0.72,168.01,167.95,36.15728474]
[1762196355123,5.56219299,168.01,167.96,5.95368316]
[1762196355553,0.72,168.0,167.96,5.95368316]
[1762196355870,5.56219299,168.0,167.95,5.95407759]
[1762196356236,0.72,167.99,167.95,5.95407759]
[1762196356543,0.72,167.99,167.93,20.8417326]
[1762196356544,12.22,167.98,167.93,20.8417326]
[1762196356748,0.72,167.99,167.94,10.46882769]
[1762196357058,16.1523825,167.98,167.94,10.46882769]
[1762196357231,12.22,167.98,167.96,9.78882769]
[1762196358249,12.22,167.98,167.97,5.95344406]
[1762196358457,16.15534798,167.98,167.97,5.95344406]
[1762196360161,3.93534798,167.98,167.97,5.95344406]
[1762196360459,16.15534798,167.98,167.97,5.95344406]
[1762196363355,16.15534798,167.98,167.96,5.95368412]
[1762196363534,4.65534798,167.97,167.95,20.592]
[1762196363735,3.93534798,167.96,167.95,20.592]
[1762196364445,3.93534798,167.96,167.95,26.54602691]
[1762196364642,3.93534798,167.96,167.95,5.95402691]
[1762196364844,4.65534798,167.96,167.95,5.95402691]
[1762196365044,3.93534798,167.96,167.95,5.95402691]
[1762196366157,3.93534798,167.96,167.93,20.84180571]
[1762196366357,3.93534798,167.95,167.93,20.84180571]
[1762196366555,0.72,167.97,167.93,20.84180571]
[1762196366856,3.93955364,167.96,167.93,20.84180571]
[1762196367058,3.93955364,167.95,167.93,20.84180571]
[1762196367257,0.72,167.97,167.93,20.84180571]
[1762196367462,3.93970778,167.96,167.93,21.56180571]
[1762196367660,4.84219299,168.0,167.94,30.38082769]
[1762196367834,67.21718069,168.05,167.94,30.38082769]
[1762196367835,16.15980527,167.99,167.94,31.10082769]
[1762196368044,16.15980527,167.98,167.95,0.72]
[1762196368247,3.93980527,167.97,167.96,5.95379852]
[1762196369367,16.15980527,167.97,167.96,5.95379852]
[1762196370144,16.15980527,167.97,167.95,5.95415302]
[1762196370344,12.22,167.97,167.95,5.95415302]
[1762196373461,4.84219299,168.03,167.98,9.78882769]
[1762196373661,16.16022947,168.02,167.98,9.78882769]
[1762196373850,3.94022947,168.01,167.98,10.46882769]
[1762196374055,3.94022947,168.0,167.98,10.46882769]
[1762196374241,12.88,168.02,167.98,10.46882769]
[1762196374446,3.94106149,168.01,167.98,10.46882769]
[1762196374766,3.94106149,168.0,167.98,10.46882769]
[1762196374947,12.88,168.02,167.99,20.83457348]
[1762196375150,4.60077831,168.01,167.99,5.95273528]
[1762196375445,3.94077831,168.0,167.99,5.95273528]
[1762196376043,4.60077831,168.0,167.99,5.95273528]
[1762196376953,4.60077831,168.0,167.97,5.95344406]
[1762196377152,3.94077831,167.99,167.97,5.95344406]
[1762196377367,16.16077831,167.98,167.97,5.95344406]
[1762196377863,12.22,167.98,167.97,5.95344406]
[1762196378046,16.1589728,167.98,167.97,5.95344406]
[1762196379249,12.22,167.98,167.97,5.95344406]
[1762196379569,16.15869254,167.98,167.97,5.95344406]
[1762196380160,12.22,167.98,167.97,5.95344406]
[1762196380972,3.93880129,167.98,167.97,20.83705422]
[1762196383668,12.22,167.99,167.97,20.83705422]
[1762196383878,12.88,167.99,167.97,20.83705422]
[1762196384051,3.94026612,167.98,167.97,20.83705422]
[1762196386698,4.60026612,167.98,167.96,5.95366763]
[1762196386848,3.94026612,167.97,167.96,15.74249532]
[1762196387052,0.66,168.01,167.96,30.62699162]
[1762196387252,16.81975996,168.0,167.96,30.62699162]
[1762196387479,3.93975996,167.99,167.96,31.30699162]
[1762196387656,3.93975996,167.98,167.96,31.30699162]
[1762196387973,12.22,167.99,167.96,31.30699162]
[1762196388194,3.94055476,167.98,167.97,9.78882769]
[1762196388384,3.94055476,167.98,167.97,10.46882769]
[1762196388677,3.94055476,167.98,167.97,15.74227175]
[1762196388883,12.22,167.99,167.97,15.74227175]
[1762196389392,12.22,167.99,167.97,16.42227175]
[1762196389752,4.84219299,168.03,167.99,9.78882769]
[1762196389957,3.94169655,168.02,168.0,0.68]
[1762196390252,0.66,168.04,168.0,0.68]
[1762196390451,3.9409196,168.03,168.0,0.68]
[1762196390753,3.9409196,168.02,168.01,5.95202666]
[1762196392068,3.9409196,168.02,168.0,15.74120864]
[1762196392375,3.9409196,168.01,168.0,15.74120864]
[1762196392761,3.9409196,168.01,168.0,16.42120864]
[1762196393477,3.9409196,168.01,168.0,37.01320864]
[1762196395070,3.9409196,168.01,168.0,36.33320864]
[1762196395599,16.8209196,168.01,168.0,5.95238095]
[1762196396501,16.8209196,168.01,167.99,20.83387689]
[1762196396665,3.9409196,168.0,167.99,20.83387689]
[1762196399275,3.9409196,168.0,167.99,30.62270458]
[1762196399862,3.9409196,168.0,167.99,20.83387689]
[1762196400065,4.6009196,168.0,167.99,5.95273528]
[1762196400285,4.6009196,168.0,167.98,20.592]
[1762196400584,4.6009196,167.99,167.97,5.95344406]
[1762196400764,4.6009196,167.98,167.97,5.95344406]
[1762196400965,4.84219299,168.06,167.98,0.68]
[1762196401164,4.84219299,168.14,168.06,20.592]
[1762196401365,0.2,168.15,168.1,20.592]
[1762196401601,0.2,168.15,168.14,20.592]
[1762196401769,0.2,168.15,168.1,17.8250991]
[1762196401967,0.2,168.15,168.11,59.93098926]
[1762196402168,0.66,168.14,168.06,18.64490658]
[1762196402389,0.66,168.14,168.08,9.78882769]
[1762196402570,0.66,168.14,168.09,20.82217859]
[1762196402769,0.66,168.14,168.13,20.592]
[1762196403084,0.2,168.15,168.13,30.38082769]
[1762196403286,13.11,168.15,168.13,30.38082769]
[1762196403500,0.2,168.15,168.13,30.38082769]
[1762196404077,0.2,168.15,168.14,9.78882769]
[1762196404484,0.2,168.15,168.14,15.73625245]
[1762196405294,0.2,168.15,168.14,9.78882769]
[1762196405508,0.91,168.15,168.13,9.78882769]
[1762196405673,0.91,168.15,168.13,15.73649788]
[1762196405874,0.2,168.15,168.13,15.73649788]
[1762196406599,0.2,168.15,168.14,15.73625245]
[1762196407404,0.2,168.15,168.14,16.42625245]
[1762196407606,0.2,168.2,168.18,9.78882769]
[1762196408077,0.91,168.2,168.17,20.592]
[1762196408271,0.71,168.19,168.14,26.53942476]
[1762196408782,0.71,168.19,168.14,20.592]
[1762196408989,6.65585146,168.19,168.08,0.14216157]
[1762196409213,1.88832788,168.18,168.08,30.61172082]
[1762196409400,0.34216157,168.2,168.1,9.78882769]
[1762196409401,0.71,168.17,168.1,9.78882769]
[1762196409696,12.2,168.16,168.1,30.38082769]
[1762196409893,12.2,168.16,168.1,31.07082769]
[1762196410081,12.91,168.16,168.1,31.07082769]
[1762196410276,12.91,168.16,168.1,30.38082769]
[1762196410482,12.91,168.16,168.1,31.07082769]
[1762196410778,12.91,168.16,168.06,5.9499323]
[1762196410779,1.88832788,168.13,168.06,5.9499323]
[1762196410995,0.71,168.12,168.06,5.9499323]
[1762196411193,0.71,168.12,168.06,41.41757195]
[1762196411384,12.24,168.15,168.09,20.592]
[1762196411591,12.24,168.15,168.1,0.69]
[1762196411982,0.71,168.14,168.08,21.282]
[1762196412298,0.71,168.14,168.09,0.69]
[1762196412503,0.71,168.17,168.09,0.69]
[1762196412801,12.24,168.16,168.11,9.78882769]
[1762196413194,12.24,168.16,168.11,10.47882769]
[1762196413195,12.95,168.16,168.11,10.47882769]
[1762196413711,0.71,168.15,168.11,9.78882769]
[1762196414977,0.71,168.15,168.12,5.94813228]
[1762196415493,0.71,168.15,168.1,15.73734907]
[1762196415701,0.71,168.15,168.1,16.42734907]
[1762196416101,0.71,168.15,168.11,0.69]
[1762196416288,0.71,168.15,168.1,31.29944901]
[1762196416691,0.71,168.15,168.1,30.60944901]
[1762196416997,0.71,168.15,168.11,0.69]
[1762196417190,0.71,168.15,168.12,5.94813228]
[1762196418386,0.71,168.15,168.11,5.94848611]
[1762196418690,12.95,168.17,168.11,42.10170138]
[1762196418886,0.71,168.16,168.11,42.10170138]
[1762196419289,0.71,168.16,168.12,9.78882769]
[1762196419578,0.71,168.16,168.12,10.47882769]
[1762196419784,0.71,168.19,168.14,30.38082769]
[1762196419993,0.71,168.19,168.14,31.07082769]
[1762196420398,0.71,168.19,168.15,5.94707106]
[1762196420613,12.42,168.2,168.15,6.63707106]
[1762196420801,13.13,168.2,168.15,6.63707106]
[1762196421398,13.13,168.2,168.16,10.47882769]
[1762196421608,13.13,168.2,168.16,9.78882769]
[1762196421907,12.42,168.2,168.16,9.78882769]
[1762196422114,13.13,168.2,168.16,10.47882769]
[1762196422710,13.13,168.2,168.17,5.94636379]
[1762196423894,12.42,168.2,168.17,20.81227328]
[1762196424095,12.42,168.2,168.17,6.63636379]
[1762196426307,13.13,168.2,168.17,6.63636379]
[1762196426507,12.42,168.2,168.17,6.63636379]
[1762196426704,0.2,168.2,168.19,30.38082769]
[1762196426921,1e-08,168.2,168.19,30.38082769]
[1762196427120,1e-08,168.2,168.19,31.07082769]
[1762196427502,1e-08,168.2,168.19,21.282]
[1762196427697,1e-08,168.2,168.17,41.40427328]
[1762196427904,1e-08,168.2,168.17,42.12427328]
[1762196428331,1e-08,168.2,168.17,20.592]
[1762196428332,0.66,168.19,168.17,20.592]
[1762196428527,1.88832788,168.18,168.12,9.78882769]
[1762196428825,1.88832788,168.18,168.13,5.9477785]
[1762196429027,1.88832788,168.18,168.14,0.72]
[1762196429028,2.54832788,168.18,168.14,0.72]
[1762196429799,1.88832788,168.19,168.14,0.72]
[1762196430005,0.66000001,168.2,168.14,0.72]
[1762196430203,2.54832788,168.19,168.14,0.72]
[1762196430428,0.66,168.19,168.14,0.72]
[1762196430629,0.66,168.18,168.15,5.94707106]
[1762196433236,12.2,168.19,168.15,42.12674872]
[1762196433418,4.56712635,168.18,168.03,17.72359399]
[1762196433734,7.69547309,168.16,168.06,0.72]
[1762196433936,1.88832788,168.11,168.06,21.312]
[1762196434096,1.88832788,168.08,168.04,9.78882769]
[1762196434302,1.88832788,168.07,168.01,15.59995406]
[1762196434502,1.88832788,168.05,167.99,0.72]
[1762196434709,6.09312562,168.04,167.94,0.1]
[1762196434911,1.88832788,168.0,167.95,5.95415302]
[1762196435120,1.88832788,167.99,167.95,5.95415302]
[1762196435302,0.66,168.04,167.96,0.72]
[1762196435501,12.24,168.03,167.96,0.72]
[1762196435706,12.24,168.03,167.97,9.78882769]
[1762196436115,12.24,168.03,167.97,10.50882769]
[1762196436514,12.9,168.03,167.97,10.50882769]
[1762196436702,12.9,168.03,167.99,9.78882769]
[1762196436703,12.24,168.03,167.99,9.78882769]
[1762196436904,0.66,168.05,167.99,9.78882769]
[1762196437100,12.26,168.06,168.02,20.592]
[1762196437416,12.92,168.06,168.02,20.592]
[1762196438730,12.92,168.06,168.03,5.95131821]
[1762196439334,12.92,168.06,168.02,20.592]
[1762196439335,12.26,168.06,168.02,5.95162255]
[1762196439627,0.66,168.05,168.02,5.95162255]
[1762196440631,12.26,168.06,168.03,0.72]
[1762196440814,0.66,168.08,168.03,10.50882769]
[1762196441024,12.26,168.07,168.03,10.50882769]
[1762196441529,12.26,168.07,168.02,9.78882769]
[1762196441734,0.66,168.06,168.02,9.78882769]
[1762196442106,0.66,168.06,168.02,10.50882769]
[1762196442302,12.26,168.07,168.02,10.50882769]
[1762196442502,12.92,168.07,168.02,10.50882769]
[1762196442811,12.92,168.07,168.03,5.95131821]
[1762196443620,4.91638126,168.11,168.03,5.95131821]
[1762196443621,0.66,168.11,168.04,10.50882769]
[1762196444033,0.66,168.11,168.06,9.78882769]
[1762196444426,0.66,168.11,168.07,9.78882769]
[1762196444849,0.66,168.1,168.07,9.78882769]
[1762196445042,0.66,168.1,167.99,9.78882769]
[1762196445239,7.57649633,168.06,167.98,5.95308965]
[1762196445441,20.49649633,168.05,167.98,5.95308965]
[1762196445640,7.57649633,168.03,167.98,5.95308965]
[1762196446048,0.66,168.02,167.98,5.95308965]
[1762196446356,0.66,168.02,167.94,0.1]
[1762196446357,7.57649633,167.99,167.94,0.1]
[1762196446646,7.57649633,167.95,167.94,0.1]
[1762196446823,12.28,167.98,167.94,0.1]
[1762196446824,7.7186579,167.97,167.94,0.1]
[1762196447020,0.66,167.97,167.94,0.1]
[1762196447223,12.3,167.96,167.94,0.1]
[1762196447443,0.66,167.95,167.94,0.1]
[1762196447647,12.96,167.95,167.94,0.1]
[1762196447833,12.3,167.95,167.94,0.1]
[1762196449428,18.91415302,167.95,167.94,0.1]
[1762196449730,12.96,167.95,167.94,0.1]
[1762196450356,20.53649633,167.95,167.94,0.1]
[1762196450647,26.49064935,167.95,167.94,0.1]
[1762196450844,12.96,167.95,167.94,0.1]
[1762196451932,18.91415302,167.95,167.94,0.1]
[1762196452156,19.05631459,167.95,167.94,0.1]
[1762196452465,20.592,167.93,167.92,0.1]
[1762196452652,21.39416157,167.93,167.92,0.1]
[1762196452858,28.9706579,167.93,167.92,0.1]
[1762196453341,34.92552004,167.93,167.92,0.1]
[1762196453842,12.28,167.93,167.92,0.1]
[1762196454348,0.66,167.98,167.92,0.82]
[1762196454533,12.28,167.97,167.92,0.1]
[1762196454863,12.94,167.97,167.92,0.1]
[1762196455032,0.66,167.97,167.92,0.82]
[1762196455232,12.28,167.96,167.92,0.82]
[1762196455452,0.66,167.97,167.92,0.1]
[1762196455744,12.96,167.96,167.92,6.05518677]
[1762196456677,7.57649633,167.94,167.92,0.1]
[1762196457029,12.3,167.93,167.92,0.1]
[1762196457640,20.73416157,167.98,167.92,6.05521676]
[1762196457831,12.3,167.97,167.92,6.77521676]
[1762196458031,12.96,167.97,167.92,6.77521676]
[1762196458245,0.66,167.96,167.92,6.05521676]
[1762196460272,12.96,167.95,167.92,0.1]
[1762196460453,12.3,167.94,167.92,0.1]
[1762196460970,0.14216157,168.0,167.93,0.72]
[1762196461173,26.8,168.01,167.94,9.78882769]
[1762196461335,12.3,168.0,167.98,9.78882769]
[1762196461736,12.3,168.0,167.99,9.78882769]
[1762196461937,12.3,168.02,168.0,9.78882769]
[1762196462435,12.3,168.02,167.98,0.69]
[1762196462869,0.68,168.01,167.96,20.592]
[1762196463172,0.68,168.04,167.97,21.282]
[1762196463333,12.3,168.03,167.98,9.78882769]
[1762196463537,0.68,168.04,167.98,10.47882769]
[1762196463755,12.3,168.02,167.98,10.47882769]
[1762196464261,12.3,168.02,167.98,9.78882769]
[1762196464475,12.3,168.02,167.97,20.592]
[1762196464650,0.68,168.01,167.97,20.592]
[1762196464851,5.95238095,168.0,167.95,5.9540661]
[1762196465156,4.56118933,168.01,167.95,15.74289379]
[1762196465937,0.68,168.01,167.95,15.74289379]
[1762196466142,0.68,168.01,167.96,0.69]
[1762196466570,12.3,168.0,167.96,0.69]
[1762196466957,12.98,168.0,167.95,9.78882769]
[1762196467136,0.68,167.99,167.93,0.69]
[1762196467335,0.68,167.99,167.93,10.47882769]
[1762196467762,0.68,167.99,167.94,0.69]
[1762196468660,0.68,168.02,167.95,9.78882769]
[1762196468863,12.3,168.01,167.96,0.69]
[1762196469054,12.3,168.01,167.97,5.95344406]
[1762196469255,0.68,168.04,167.98,0.69]
[1762196469457,12.3,168.03,167.98,0.69]
[1762196469945,12.98,168.03,167.98,0.69]
[1762196470149,12.14394504,168.02,167.97,5.95344406]
[1762196470559,8.25649633,168.01,167.95,0.69]
[1762196470862,0.68,168.01,167.95,21.282]
[1762196471040,4.56744871,168.01,167.95,27.23613139]
[1762196471241,3.88744871,168.01,167.96,0.69]
[1762196471467,3.88744871,168.02,167.97,9.78882769]
[1762196471670,12.3,168.01,167.98,0.69]
[1762196472560,12.3,168.01,167.96,9.78882769]
[1762196472561,0.68,168.0,167.96,9.78882769]
[1762196472756,0.68,168.0,167.95,27.23613139]
[1762196472970,3.8954518,167.99,167.95,27.23613139]
[1762196473152,3.8954518,167.99,167.96,0.69]
[1762196473357,3.8954518,167.98,167.96,0.69]
[1762196473656,12.3,167.97,167.95,26.54613139]
[1762196474058,0.68,168.0,167.95,26.54613139]
[1762196474370,16.19730079,167.99,167.96,0.69]
[1762196474573,3.89730079,167.98,167.95,27.23613139]
[1762196474772,3.89730079,167.97,167.94,9.78882769]
[1762196474989,12.98,167.99,167.93,27.23670962]
[1762196475176,3.89891587,167.98,167.93,27.23670962]
[1762196475362,3.89891587,167.97,167.93,27.23670962]
[1762196475675,12.98,167.99,167.93,27.23670962]
[1762196475676,3.89891587,167.96,167.94,0.69]
[1762196475859,12.98,167.99,167.94,0.69]
[1762196476183,3.9015655,167.98,167.94,0.69]
[1762196476363,3.9015655,167.97,167.94,0.69]
[1762196476571,7.57649633,167.95,167.92,0.1]
[1762196476786,16.1815655,167.94,167.92,0.1]
[1762196476981,3.9015655,167.93,167.92,0.1]
[1762196477788,3.9015655,167.93,167.92,16.53404445]
[1762196478363,3.9015655,167.93,167.92,6.74521676]
[1762196478675,3.9015655,167.93,167.92,0.1]
[1762196480785,8.75357696,167.93,167.92,0.1]
[1762196481677,3.9015655,167.93,167.92,0.1]
[1762196481860,8.75357696,167.93,167.92,0.1]
[1762196482275,3.9015655,167.93,167.92,0.1]
[1762196482878,3.9015655,167.93,167.92,6.74521676]
[1762196483077,3.9015655,167.93,167.92,27.33721676]
[1762196483281,12.3,167.96,167.93,9.78882769]
[1762196483462,3.91724798,167.95,167.94,10.47882769]
[1762196485192,3.91724798,167.95,167.94,16.43333525]
[1762196485392,3.91724798,167.95,167.92,35.58004192]
[1762196485393,3.91971853,167.95,167.92,20.692]
[1762196485567,3.91971853,167.94,167.93,10.47882769]
[1762196486669,11.49621486,167.94,167.92,0.1]
[1762196486872,16.21971853,167.93,167.92,0.1]
[1762196487288,3.91971853,167.93,167.92,10.57882769]
[1762196487491,3.91971853,167.93,167.92,16.53404445]
[1762196487705,12.32,167.94,167.93,9.78882769]
[1762196487992,12.32,167.94,167.93,10.46882769]
[1762196487993,16.24237824,167.94,167.93,10.46882769]
[1762196488209,4.85201146,167.99,167.93,10.46882769]
[1762196488394,4.85201146,167.99,167.93,0.68]
[1762196488395,21.09639441,167.98,167.93,0.68]
[1762196488603,3.92438295,167.97,167.94,0.68]
[1762196488805,3.92438295,167.96,167.94,0.68]
[1762196489103,3.92550011,167.97,167.94,0.68]
[1762196489293,12.34,167.99,167.95,15.74274392]